bitfinex-derivatives/quotes_BTCF0:USTF0_20250427
["timestamp","ask_amount","ask_price","bid_price","bid_amount"]
[1745783249485,0.31424728,94433.0,94432.0,0.65363559]
[1745783249779,0.28194728,94433.0,94432.0,0.65363559]
[1745783254785,0.28194728,94433.0,94432.0,0.29283559]
[1745783254990,0.28194728,94433.0,94432.0,0.65363559]
[1745783274503,0.12,94433.0,94432.0,0.65363559]
[1745783277507,0.07392372,94433.0,94432.0,0.65363559]
[1745783277707,0.0305,94439.0,94438.0,0.264639]
[1745783278005,0.19244728,94439.0,94438.0,0.264639]
[1745783278202,0.1505,94439.0,94438.0,0.264639]
[1745783279504,0.12,94439.0,94438.0,0.264639]
[1745783280409,0.12,94439.0,94438.0,0.267639]
[1745783281198,0.12,94439.0,94438.0,0.270639]
[1745783287699,0.12,94439.0,94438.0,0.43196401]
[1745783288105,0.12,94439.0,94438.0,0.79276401]
[1745783291001,0.12,94439.0,94438.0,0.631439]
[1745783291408,0.12,94439.0,94438.0,0.696239]
[1745783300222,0.12,94439.0,94438.0,0.85754345]
[1745783303625,0.12,94439.0,94438.0,0.49674345]
[1745783304027,0.12,94439.0,94438.0,0.85754345]
[1745783306724,0.12,94439.0,94438.0,0.696239]
[1745783310036,0.12,94439.0,94438.0,0.335439]
[1745783310242,0.12,94439.0,94438.0,0.696239]
[1745783315252,0.12,94439.0,94438.0,0.91242022]
[1745783317351,0.28194728,94439.0,94438.0,0.91242022]
[1745783318955,0.28194728,94439.0,94438.0,0.97618022]
[1745783320855,0.28194728,94439.0,94438.0,0.759999]
[1745783332460,0.28194728,94439.0,94438.0,0.399199]
[1745783332656,0.28194728,94439.0,94438.0,0.759999]
[1745783351963,0.12,94439.0,94438.0,0.399199]
[1745783352170,0.12,94439.0,94438.0,0.759999]
[1745783353277,0.28194728,94439.0,94438.0,0.759999]
[1745783356975,0.28194728,94439.0,94438.0,0.399199]
[1745783357181,0.28194728,94439.0,94438.0,0.759999]
[1745783363079,0.31294728,94439.0,94438.0,0.759999]
[1745783364178,0.52465638,94439.0,94438.0,0.759999]
[1745783364776,0.52465638,94439.0,94438.0,0.399199]
[1745783364982,0.52465638,94439.0,94438.0,0.759999]
[1745783366084,0.52465638,94439.0,94438.0,0.399199]
[1745783366270,0.52465638,94439.0,94438.0,0.759999]
[1745783366977,0.68465638,94439.0,94438.0,0.3668]
[1745783367384,0.79054439,94439.0,94438.0,0.006]
[1745783367782,0.82184439,94439.0,94438.0,0.006]
[1745783368084,0.2117181,94435.0,94434.0,0.21618122]
[1745783368288,0.53366538,94435.0,94434.0,0.21618122]
[1745783368590,0.63955739,94435.0,94434.0,0.21618122]
[1745783369081,0.70205739,94435.0,94434.0,0.21618122]
[1745783369287,0.82205739,94435.0,94434.0,0.21618122]
[1745783370573,0.82305739,94435.0,94434.0,0.21618122]
[1745783371481,0.82305739,94435.0,94432.0,0.01271079]
[1745783371482,0.2117225,94433.0,94432.0,0.01271079]
[1745783371684,0.2117248,94432.0,94431.0,0.2117263]
[1745783371880,0.2117338,94428.0,94427.0,0.2754956]
[1745783372076,0.50368108,94428.0,94427.0,0.2754956]
[1745783372985,0.56778108,94428.0,94427.0,0.2754956]
[1745783373194,0.2117382,94426.0,94425.0,0.241839]
[1745783373395,0.37368548,94426.0,94425.0,0.241839]
[1745783373582,0.37368548,94426.0,94425.0,0.274539]
[1745783374085,0.49368548,94426.0,94425.0,0.274539]
[1745783374285,0.49368548,94426.0,94425.0,0.278539]
[1745783374685,0.49368548,94426.0,94425.0,0.0668]
[1745783374895,0.49368548,94426.0,94425.0,0.0638]
[1745783375075,0.49368548,94426.0,94425.0,0.0648]
[1745783375682,0.49368548,94426.0,94425.0,0.0764309]
[1745783382701,0.49368548,94426.0,94425.0,0.0754309]
[1745783382901,0.49368548,94426.0,94425.0,0.0764309]
[1745783383497,0.49368548,94426.0,94425.0,0.0744309]
[1745783384499,0.49368548,94426.0,94425.0,0.0754309]
[1745783384896,0.49368548,94426.0,94425.0,0.1068309]
[1745783387495,0.49368548,94426.0,94425.0,0.0754309]
[1745783389500,0.49368548,94426.0,94425.0,0.0744309]
[1745783389798,0.64368548,94426.0,94425.0,0.0744309]
[1745783396203,0.64368548,94426.0,94425.0,0.0754309]
[1745783399508,0.49368548,94426.0,94425.0,0.0754309]
[1745783402213,0.49368548,94426.0,94425.0,0.2871714]
[1745783405010,0.49368548,94426.0,94425.0,0.0754309]
[1745783408814,0.49368548,94426.0,94425.0,0.2871714]
[1745783409915,0.64368548,94426.0,94425.0,0.0754309]
[1745783410213,0.70628548,94426.0,94425.0,0.0126309]
[1745783410407,1.06708548,94426.0,94425.0,0.0126309]
[1745783411115,1.06708548,94426.0,94425.0,0.0116309]
[1745783411320,0.2117495,94421.0,94420.0,0.16132115]
[1745783411508,0.40369678,94421.0,94420.0,0.16132115]
[1745783412206,0.58659678,94421.0,94420.0,0.16132115]
[1745783412717,0.2117539,94419.0,94418.0,0.211755]
[1745783412901,0.39370118,94419.0,94418.0,0.211755]
[1745783413101,0.51370118,94419.0,94418.0,0.211755]
[1745783413615,0.51370118,94419.0,94418.0,0.22310198]
[1745783414817,0.51370118,94419.0,94418.0,0.01134698]
[1745783415006,0.2117584,94417.0,94416.0,0.0328]
[1745783415205,0.37370568,94417.0,94416.0,0.0328]
[1745783415406,0.2117584,94417.0,94416.0,0.04390849]
[1745783416130,0.3317584,94417.0,94416.0,0.04390849]
[1745783416620,0.3317584,94417.0,94416.0,0.04490849]
[1745783417912,0.3317584,94417.0,94416.0,0.04590849]
[1745783418610,0.3317584,94417.0,94416.0,0.04490849]
[1745783418811,0.3317584,94417.0,94416.0,0.04590849]
[1745783420712,0.3317584,94417.0,94416.0,0.04490849]
[1745783421025,0.3317584,94417.0,94416.0,0.04590849]
[1745783423636,0.3417584,94417.0,94416.0,0.04590849]
[1745783424224,0.3417584,94417.0,94416.0,0.04490849]
[1745783424521,0.3417584,94417.0,94416.0,0.01310849]
[1745783424724,0.2117764,94409.0,94407.0,0.16132115]
[1745783424925,0.2117786,94408.0,94407.0,0.16132115]
[1745783425114,0.75102588,94408.0,94407.0,0.17263491]
[1745783426120,0.75102588,94408.0,94407.0,0.17463491]
[1745783427014,0.75102588,94408.0,94407.0,0.21545834]
[1745783427221,0.75102588,94408.0,94407.0,0.21745834]
[1745783429027,0.5890786,94408.0,94407.0,0.21745834]
[1745783429229,0.52462588,94408.0,94407.0,0.21745834]
[1745783433533,0.52462588,94408.0,94407.0,0.24925834]
[1745783436030,0.52462588,94408.0,94407.0,0.08793719]
[1745783436627,0.53462588,94408.0,94407.0,0.08793719]
[1745783439535,0.30695365,94408.0,94407.0,0.29971809]
[1745783439730,0.12,94408.0,94407.0,0.29971809]
[1745783440030,0.10085395,94408.0,94407.0,0.29971809]
[1745783440333,0.4103,94419.0,94418.0,0.2117562]
[1745783440531,0.6220539,94419.0,94418.0,0.5672662]
[1745783441223,0.7420539,94419.0,94418.0,0.5672662]
[1745783441420,0.7430539,94419.0,94418.0,0.5672662]
[1745783442037,0.7440539,94419.0,94418.0,0.5672662]
[1745783443037,0.7430539,94419.0,94418.0,0.5692662]
[1745783443735,0.7420539,94419.0,94418.0,0.5712662]
[1745783443935,0.5303,94419.0,94418.0,0.5712662]
[1745783445335,0.12,94419.0,94418.0,0.5712662]
[1745783448435,0.05292,94452.0,94418.0,0.6771782]
[1745783448738,0.2646665,94430.0,94429.0,0.2117301]
[1745783449237,0.3846665,94430.0,94429.0,0.2117301]
[1745783449640,0.3846665,94430.0,94429.0,0.2424301]
[1745783449937,0.3846665,94430.0,94429.0,0.2740301]
[1745783450739,0.3856665,94430.0,94429.0,0.2740301]
[1745783451640,0.3846665,94430.0,94429.0,0.2760301]
[1745783451830,0.3856665,94430.0,94429.0,0.2760301]
[1745783452239,0.3846665,94430.0,94429.0,0.2770301]
[1745783453042,0.3846665,94430.0,94429.0,0.2750301]
[1745783453337,0.12,94430.0,94429.0,0.2760301]
[1745783453932,0.12,94430.0,94429.0,0.2770301]
[1745783454640,0.3317293,94430.0,94429.0,0.2770301]
[1745783455343,0.3357293,94430.0,94429.0,0.2770301]
[1745783455843,0.3317293,94430.0,94429.0,0.2740301]
[1745783456044,0.3387293,94430.0,94429.0,0.2750301]
[1745783456739,0.3397293,94430.0,94429.0,0.2750301]
[1745783459845,0.3397293,94430.0,94429.0,0.6358301]
[1745783460234,0.128,94430.0,94429.0,0.6358301]
[1745783461741,0.3397293,94430.0,94429.0,0.6358301]
[1745783463948,0.3397293,94430.0,94429.0,0.2750301]
[1745783464149,0.3397293,94430.0,94429.0,0.6358301]
[1745783464841,0.3397293,94430.0,94429.0,0.2750301]
[1745783465148,0.3397293,94430.0,94429.0,0.6358301]
[1745783465950,0.128,94430.0,94429.0,0.6358301]
[1745783466649,0.1605,94430.0,94429.0,0.6358301]
[1745783466950,0.3722293,94430.0,94429.0,0.6358301]
[1745783468752,0.1605,94430.0,94429.0,0.6358301]
[1745783469853,0.3722293,94430.0,94429.0,0.6358301]
[1745783470048,0.1605,94430.0,94429.0,0.6358301]
[1745783471037,0.3722293,94430.0,94429.0,0.6358301]
[1745783482357,0.1605,94430.0,94429.0,0.6358301]
[1745783488757,0.1605,94430.0,94429.0,0.2750301]
[1745783488963,0.1605,94430.0,94429.0,0.6358301]
[1745783490762,0.3722293,94430.0,94429.0,0.6358301]
[1745783490954,0.1605,94430.0,94429.0,0.6358301]
[1745783493957,0.32244728,94430.0,94429.0,0.6358301]
[1745783495766,0.128,94430.0,94429.0,0.6358301]
[1745783498769,0.128,94430.0,94429.0,0.2750301]
[1745783499071,0.128,94430.0,94429.0,0.6358301]
[1745783500865,0.128,94430.0,94429.0,0.2750301]
[1745783501072,0.128,94430.0,94429.0,0.6358301]
[1745783511483,0.128,94430.0,94429.0,0.85201132]
[1745783515077,0.128,94430.0,94429.0,0.6358301]
[1745783515577,0.128,94430.0,94429.0,0.2750301]
[1745783515776,0.128,94430.0,94429.0,0.6358301]
[1745783516781,0.128,94430.0,94429.0,0.2750301]
[1745783516986,0.128,94430.0,94429.0,0.6358301]
[1745783517990,0.128,94430.0,94429.0,0.2750301]
[1745783518189,0.128,94430.0,94429.0,0.6358301]
[1745783527097,0.128,94430.0,94429.0,0.85201132]
[1745783532698,0.07856285,94430.0,94429.0,0.85201132]
[1745783535188,0.07856285,94430.0,94429.0,1.02781132]
[1745783535493,0.07856285,94430.0,94429.0,0.85201132]
[1745783537197,0.07856285,94430.0,94429.0,0.6358301]
[1745783547507,0.07856285,94430.0,94429.0,0.2750301]
[1745783547707,0.07856285,94430.0,94429.0,0.9966301]
[1745783555513,0.07856285,94430.0,94429.0,0.2750301]
[1745783555719,0.07856285,94430.0,94429.0,0.9966301]
[1745783572935,0.07856285,94430.0,94429.0,0.2750301]
[1745783573142,0.07856285,94430.0,94429.0,0.9966301]
[1745783575038,0.24051013,94430.0,94429.0,0.9966301]
[1745783583444,0.24051013,94430.0,94429.0,0.9659315]
[1745783583645,0.24051013,94430.0,94429.0,0.9343315]
[1745783584046,0.23651013,94430.0,94429.0,0.9333315]
[1745783584350,0.29611013,94430.0,94429.0,0.9333315]
[1745783584552,0.29811013,94430.0,94429.0,0.9333315]
[1745783585040,0.29811013,94430.0,94429.0,0.9637315]
[1745783585235,0.29611013,94430.0,94429.0,0.9952315]
[1745783585447,0.29911013,94430.0,94429.0,0.9952315]
[1745783585650,0.30111013,94430.0,94429.0,0.9962315]
[1745783586049,0.29811013,94430.0,94429.0,0.9962315]
[1745783586250,0.30111013,94430.0,94429.0,0.9962315]
[1745783586456,0.03182285,94430.0,94429.0,0.9962315]
[1745783586949,0.0640486,94459.0,94453.0,0.2116777]
[1745783587150,0.35051975,94454.0,94453.0,0.5724777]
[1745783587348,0.51246703,94454.0,94453.0,0.5724777]
[1745783587547,0.30079153,94454.0,94453.0,0.5724777]
[1745783587747,0.51246703,94454.0,94453.0,0.5724777]
[1745783588051,0.51246703,94454.0,94453.0,0.6352777]
[1745783588052,0.63246703,94454.0,94453.0,0.6352777]
[1745783588248,0.52452278,94454.0,94453.0,0.6352777]
[1745783588546,0.28494728,94454.0,94453.0,0.6352777]
[1745783588746,0.49962278,94454.0,94453.0,0.6362777]
[1745783589450,0.49862278,94454.0,94453.0,0.6362777]
[1745783590044,0.53122278,94454.0,94453.0,0.6362777]
[1745783590350,0.53022278,94454.0,94453.0,0.6352777]
[1745783590550,0.56182278,94454.0,94453.0,0.6352777]
[1745783591040,0.56082278,94454.0,94453.0,0.6352777]
[1745783596351,0.56082278,94454.0,94453.0,0.0313]
[1745783596646,0.56082278,94454.0,94453.0,0.2429777]
[1745783597252,0.56082278,94454.0,94453.0,0.2116777]
[1745783597444,0.2116822,94451.0,94450.0,0.2427826]
[1745783597649,0.2116822,94451.0,94450.0,0.0311]
[1745783597844,0.37362948,94451.0,94450.0,0.0311]
[1745783598050,0.49362948,94451.0,94450.0,0.0311]
[1745783598252,0.2116844,94450.0,94449.0,0.06372]
[1745783598445,0.57753168,94450.0,94449.0,0.06372]
[1745783598649,0.60773168,94450.0,94449.0,0.06372]
[1745783599155,0.72773168,94450.0,94449.0,0.06372]
[1745783600845,0.72873168,94450.0,94449.0,0.06372]
[1745783605061,0.67584448,94450.0,94443.0,0.3608]
[1745783605262,0.16194728,94444.0,94442.0,0.2117023]
[1745783605461,0.0655,94443.0,94442.0,0.2117023]
[1745783605663,0.23744728,94443.0,94442.0,0.2117023]
[1745783605968,0.2117068,94440.0,94439.0,0.2425069]
[1745783606263,0.3317068,94440.0,94439.0,0.2748069]
[1745783606463,0.49365408,94440.0,94439.0,0.2748069]
[1745783606961,0.52475408,94440.0,94439.0,0.0631]
[1745783607262,0.52475408,94440.0,94439.0,0.0308]
[1745783607563,0.53475408,94440.0,94439.0,0.0308]
[1745783607763,0.53475408,94440.0,94439.0,0.0328]
[1745783607965,0.53475408,94440.0,94439.0,0.0338]
[1745783608369,0.53475408,94440.0,94439.0,0.0328]
[1745783609268,0.53475408,94440.0,94439.0,0.0318]
[1745783610565,0.53475408,94440.0,94439.0,0.0328]
[1745783619781,0.50365408,94440.0,94439.0,0.0308]
[1745783619988,0.50365408,94440.0,94439.0,0.0318]
[1745783620488,0.53375408,94440.0,94439.0,0.0318]
[1745783621890,0.50365408,94440.0,94439.0,0.0318]
[1745783628098,0.50365408,94440.0,94439.0,0.0308]
[1745783628395,0.50365408,94440.0,94439.0,0.0318]
[1745783628596,0.50465408,94440.0,94439.0,0.0318]
[1745783629995,0.50365408,94440.0,94439.0,0.0318]
[1745783630693,0.50365408,94440.0,94439.0,0.0308]
[1745783630997,0.50365408,94440.0,94439.0,0.0318]
[1745783631792,0.50465408,94440.0,94439.0,0.0318]
[1745783634894,0.50465408,94440.0,94439.0,0.0625]
[1745783643000,0.3427068,94440.0,94439.0,0.0625]
[1745783644204,0.3427068,94440.0,94439.0,0.2742091]
[1745783644705,0.121,94440.0,94439.0,0.2742091]
[1745783648106,0.11493349,94440.0,94439.0,0.2742091]
[1745783648493,0.10784349,94440.0,94439.0,0.2742091]
[1745783654013,0.10784349,94440.0,94439.0,0.9958091]
[1745783654613,0.10784349,94440.0,94439.0,0.2742091]
[1745783654813,0.10784349,94440.0,94439.0,0.9958091]
[1745783657008,0.09050349,94440.0,94439.0,0.9958091]
[1745783658111,0.09050349,94440.0,94439.0,1.15701541]
[1745783662111,0.09050349,94440.0,94439.0,0.9958091]
[1745783665722,0.09050349,94440.0,94439.0,1.0595291]
[1745783666315,0.03886349,94440.0,94439.0,1.0595291]
[1745783666515,0.0332,94453.0,94452.0,0.21168]
[1745783666824,0.0332,94453.0,94452.0,0.57248]
[1745783667015,0.19514728,94453.0,94452.0,0.57248]
[1745783667215,0.31514728,94453.0,94452.0,0.63768]
[1745783667724,0.31614728,94453.0,94452.0,0.63768]
[1745783668021,0.28294728,94453.0,94452.0,0.63768]
[1745783669222,0.28394728,94453.0,94452.0,0.63768]
[1745783669618,0.122,94453.0,94452.0,0.63768]
[1745783670609,0.121,94453.0,94452.0,0.63768]
[1745783670818,0.122,94453.0,94452.0,0.63768]
[1745783679530,0.122,94453.0,94452.0,0.27688]
[1745783679828,0.122,94453.0,94452.0,0.63768]
[1745783699936,0.09718882,94453.0,94452.0,0.63768]
[1745783701136,0.09718882,94453.0,94452.0,0.65325157]
[1745783701924,0.09718882,94453.0,94452.0,0.63768]
[1745783702130,0.2591361,94453.0,94452.0,0.63768]
[1745783704530,0.4708138,94453.0,94452.0,0.3608]
[1745783704734,0.4708138,94453.0,94452.0,0.42448]
[1745783704928,0.4708138,94453.0,94452.0,0.3608]
[1745783705125,0.5322138,94453.0,94452.0,0.3608]
[1745783705330,0.5322138,94453.0,94452.0,0.57248]
[1745783705527,0.5322138,94453.0,94452.0,0.3608]
[1745783705930,0.5322138,94453.0,94452.0,0.57248]
[1745783707845,0.5322138,94453.0,94452.0,0.3608]
[1745783708644,0.5322138,94453.0,94452.0,0.57248]
[1745783711348,0.5322138,94453.0,94452.0,0.3608]
[1745783711734,0.21168,94452.0,94451.0,0.06368]
[1745783712044,0.38362728,94452.0,94451.0,0.06368]
[1745783712246,0.67160328,94452.0,94451.0,0.06368]
[1745783712548,0.2116844,94450.0,94449.0,0.2116864]
[1745783712843,0.37363168,94450.0,94449.0,0.2116864]
[1745783713048,0.38363168,94450.0,94449.0,0.2116864]
[1745783713349,0.50363168,94450.0,94449.0,0.2116864]
[1745783714446,0.50463168,94450.0,94449.0,0.2116864]
[1745783717946,0.2116934,94446.0,94445.0,0.2442951]
[1745783718141,0.44364068,94446.0,94445.0,0.2442951]
[1745783718741,0.43684068,94446.0,94445.0,0.2442951]
[1745783719145,0.55684068,94446.0,94445.0,0.2442951]
[1745783719741,0.55684068,94446.0,94445.0,0.0336]
[1745783719945,0.55684068,94446.0,94445.0,0.0346]
[1745783722346,0.55684068,94446.0,94445.0,0.2462956]
[1745783722543,0.55684068,94446.0,94445.0,0.2767956]
[1745783724247,0.52554068,94446.0,94445.0,0.2767956]
[1745783728848,0.52554068,94446.0,94445.0,0.0651]
[1745783729939,0.52554068,94446.0,94445.0,0.2767956]
[1745783737350,0.49364068,94446.0,94445.0,0.2767956]
[1745783738155,0.12,94446.0,94445.0,0.2767956]
[1745783741556,0.12,94446.0,94445.0,0.6375956]
[1745783742256,0.3316934,94446.0,94445.0,0.6375956]
[1745783743857,0.12,94446.0,94445.0,0.6375956]
[1745783744954,0.3316934,94446.0,94445.0,0.6375956]
[1745783745362,0.12,94446.0,94445.0,0.6375956]
[1745783752563,0.3316934,94446.0,94445.0,0.6375956]
[1745783753659,0.3316934,94446.0,94445.0,0.79880543]
[1745783754167,0.12,94446.0,94445.0,0.79880543]
[1745783756259,0.3316934,94446.0,94445.0,0.79880543]
[1745783757058,0.12,94446.0,94445.0,0.79880543]
[1745783758269,0.1515,94446.0,94445.0,0.79880543]
[1745783760064,0.31344728,94446.0,94445.0,0.79880543]
[1745783763268,0.52514068,94446.0,94445.0,0.79880543]
[1745783763660,0.31344728,94446.0,94445.0,0.79880543]
[1745783764271,0.31344728,94446.0,94445.0,0.6375956]
[1745783777872,0.30858671,94446.0,94445.0,0.6375956]
[1745783778671,0.11053833,94446.0,94445.0,0.6375956]
[1745783784587,0.10572798,94446.0,94445.0,0.6375956]
[1745783785686,0.10572798,94446.0,94445.0,0.2767956]
[1745783785880,0.47936866,94446.0,94445.0,0.0346]
[1745783786081,0.47936866,94446.0,94445.0,0.002]
[1745783786675,0.54236866,94446.0,94445.0,0.2136956]
[1745783786984,0.54236866,94446.0,94445.0,0.001]
[1745783787787,0.54236866,94446.0,94445.0,0.2126956]
[1745783788680,0.54236866,94446.0,94445.0,0.2136956]
[1745783788979,0.38142138,94446.0,94445.0,0.2126956]
[1745783789180,0.55336866,94446.0,94445.0,0.2126956]
[1745783789388,0.55236866,94446.0,94445.0,0.2136956]
[1745783791196,0.55236866,94446.0,94445.0,0.2439956]
[1745783793286,0.55236866,94446.0,94445.0,0.0323]
[1745783793491,0.55236866,94446.0,94445.0,0.2439956]
[1745783795897,0.54236866,94446.0,94445.0,0.2439956]
[1745783797699,0.54236866,94446.0,94445.0,0.4053329]
[1745783801691,0.54236866,94446.0,94445.0,0.2439956]
[1745783802192,0.54236866,94446.0,94445.0,0.0323]
[1745783803186,0.54236866,94446.0,94445.0,0.002]
[1745783803393,0.64236866,94446.0,94445.0,0.002]
[1745783814600,0.61186866,94446.0,94445.0,0.002]
[1745783816892,0.57936866,94446.0,94445.0,0.002]
[1745783820403,0.2117113,94438.0,94432.0,0.06368]
[1745783820603,0.2117181,94435.0,94434.0,0.0322]
[1745783821191,0.3317181,94435.0,94434.0,0.0322]
[1745783821899,0.3317181,94435.0,94434.0,0.6366203]
[1745783822299,0.3317181,94435.0,94434.0,0.6386203]
[1745783822503,0.3317181,94435.0,94434.0,0.4279]
[1745783822702,0.3317181,94435.0,94434.0,0.6396203]
[1745783822900,0.3317181,94435.0,94434.0,0.4279]
[1745783823601,0.3317181,94435.0,94434.0,0.6396203]
[1745783823796,0.3317181,94435.0,94434.0,0.4279]
[1745783823998,0.3317181,94435.0,94434.0,0.4269]
[1745783824595,0.3317181,94435.0,94434.0,0.4259]
[1745783825300,0.3317181,94435.0,94434.0,0.4269]
[1745783827306,0.3317181,94435.0,94434.0,0.6386203]
[1745783827510,0.2117315,94429.0,94428.0,0.1613373]
[1745783827698,0.2117315,94429.0,94426.0,0.06526854]
[1745783827699,0.2117338,94428.0,94427.0,0.2151164]
[1745783827904,0.4162338,94428.0,94427.0,0.2151164]
[1745783828105,0.69818108,94428.0,94427.0,0.2151164]
[1745783829006,0.69818108,94428.0,94427.0,0.2171164]
[1745783829504,0.70018108,94428.0,94427.0,0.2151164]
[1745783830108,0.70118108,94428.0,94427.0,0.2151164]
[1745783830303,0.70218108,94428.0,94427.0,0.2151164]
[1745783831108,0.70118108,94428.0,94427.0,0.2151164]
[1745783831313,0.70318108,94428.0,94427.0,0.2151164]
[1745783832002,0.211736,94427.0,94426.0,0.00158854]
[1745783832206,0.51368328,94427.0,94426.0,0.00158854]
[1745783832402,0.57828328,94427.0,94426.0,0.00158854]
[1745783833199,0.70128328,94427.0,94426.0,0.00258854]
[1745783834108,0.70228328,94427.0,94426.0,0.00258854]
[1745783835700,0.70228328,94427.0,94426.0,0.00158854]
[1745783835898,0.70128328,94427.0,94426.0,0.00158854]
[1745783836322,0.2117539,94419.0,94418.0,0.0328]
[1745783836510,0.50370118,94419.0,94418.0,0.0328]
[1745783837206,0.68680118,94419.0,94418.0,0.0328]
[1745783837406,0.68680118,94419.0,94418.0,0.0634]
[1745783837611,0.68680118,94419.0,94418.0,0.0644]
[1745783838399,0.4940539,94419.0,94418.0,0.0644]
[1745783842002,0.4617539,94419.0,94418.0,0.0644]
[1745783842816,0.4617539,94419.0,94418.0,0.2761562]
[1745783843010,0.3317539,94419.0,94418.0,0.0644]
[1745783844511,0.3317539,94419.0,94418.0,0.2761562]
[1745783844815,0.3317539,94419.0,94418.0,0.0644]
[1745783845016,0.3317539,94419.0,94418.0,0.2761562]
[1745783851330,0.2117539,94419.0,94418.0,0.2761562]
[1745783859211,0.2117539,94419.0,94418.0,0.3961562]
[1745783864018,0.37370118,94419.0,94418.0,0.121]
[1745783864224,0.37370118,94419.0,94418.0,0.3964362]
[1745783864721,0.40400118,94419.0,94418.0,0.3964362]
[1745783865624,0.40400118,94419.0,94418.0,0.7572362]
[1745783865817,0.40400118,94419.0,94418.0,0.7873362]
[1745783869026,0.40400118,94419.0,94418.0,0.4265362]
[1745783869319,0.40400118,94419.0,94418.0,0.7873362]
[1745783869520,0.40400118,94419.0,94418.0,0.4265362]
[1745783869718,0.40400118,94419.0,94418.0,0.7873362]
[1745783873213,0.40344161,94419.0,94418.0,0.7873362]
[1745783878012,0.43664161,94419.0,94418.0,0.7873362]
[1745783879014,0.27469433,94419.0,94418.0,0.7873362]
[1745783879221,0.43664161,94419.0,94418.0,0.7873362]
[1745783880024,0.43664161,94419.0,94418.0,0.7572362]
[1745783880718,0.43664161,94419.0,94418.0,0.7890362]
[1745783882024,0.40344161,94419.0,94418.0,0.7890362]
[1745783890928,0.40344161,94419.0,94418.0,0.57728]
[1745783891517,0.40344161,94419.0,94418.0,0.61018]
[1745783891723,0.40344161,94419.0,94418.0,0.5465]
[1745783892021,0.40344161,94419.0,94418.0,0.61018]
[1745783893137,0.40444161,94419.0,94418.0,0.61018]
[1745783893633,0.40344161,94419.0,94418.0,0.61018]
[1745783893833,0.40344161,94419.0,94418.0,0.60918]
[1745783894726,0.40344161,94419.0,94418.0,0.61018]
[1745783895926,0.40344161,94419.0,94418.0,0.8219362]
[1745783903240,0.40344161,94419.0,94418.0,0.61018]
[1745783904539,0.40344161,94419.0,94418.0,0.8219362]
[1745783909034,0.24149433,94419.0,94418.0,0.8219362]
[1745783909235,0.40344161,94419.0,94418.0,0.8219362]
[1745783915044,0.19224728,94419.0,94418.0,0.8219362]
[1745783915241,0.0303,94419.0,94418.0,0.8219362]
[1745783915548,0.2450314,94430.0,94429.0,0.2117315]
[1745783915845,0.2550314,94430.0,94429.0,0.2064415]
[1745783916150,0.41697868,94430.0,94429.0,0.3264415]
[1745783916846,0.42197868,94430.0,94429.0,0.3274415]
[1745783917050,0.45247868,94430.0,94429.0,0.3274415]
[1745783917445,0.45047868,94430.0,94429.0,0.3585415]
[1745783917650,0.45047868,94430.0,94429.0,0.3595415]
[1745783918643,0.44747868,94430.0,94429.0,0.3585415]
[1745783924449,0.44747868,94430.0,94429.0,0.3575415]
[1745783924851,0.44847868,94430.0,94429.0,0.3575415]
[1745783925353,0.44747868,94430.0,94429.0,0.3575415]
[1745783925652,0.44847868,94430.0,94429.0,0.3575415]
[1745783926151,0.44847868,94430.0,94429.0,0.3585415]
[1745783928453,0.44847868,94430.0,94429.0,0.1521]
[1745783928955,0.44847868,94430.0,94429.0,0.1851]
[1745783933949,0.19344728,94430.0,94429.0,0.3968315]
[1745783934253,0.2646512,94436.0,94435.0,0.2117181]
[1745783934452,0.2646512,94436.0,94435.0,0.5725181]
[1745783935159,0.2646512,94436.0,94435.0,0.6925181]
[1745783935655,0.2666512,94436.0,94435.0,0.6925181]
[1745783935861,0.2666512,94436.0,94435.0,0.7578181]
[1745783936264,0.002,94436.0,94435.0,0.7578181]
[1745783936566,0.002,94436.0,94435.0,0.7598181]
[1745783937259,0.2117147,94437.0,94435.0,0.5481]
[1745783937451,0.2117147,94437.0,94436.0,0.2117158]
[1745783937859,0.2117147,94437.0,94436.0,0.2770158]
[1745783938157,0.2117147,94437.0,94436.0,0.3970158]
[1745783938552,0.2127147,94437.0,94436.0,0.3970158]
[1745783939451,0.001,94437.0,94436.0,0.3970158]
[1745783939757,0.2127136,94437.0,94436.0,0.3970158]
[1745783941055,0.001,94437.0,94436.0,0.3970158]
[1745783941261,0.2127136,94437.0,94436.0,0.3970158]
[1745783941957,0.001,94437.0,94436.0,0.3970158]
[1745783953567,0.001,94437.0,94436.0,0.41257265]
[1745783954365,0.001,94437.0,94436.0,0.3970158]
[1745783955865,0.2127136,94437.0,94436.0,0.3970158]
[1745783956665,0.2444136,94437.0,94436.0,0.3970158]
[1745783956971,0.2434136,94437.0,94436.0,0.3970158]
[1745783957160,0.2454136,94437.0,94436.0,0.3970158]
[1745783957565,0.2464136,94437.0,94436.0,0.3970158]
[1745783959480,0.2464136,94437.0,94436.0,0.7578158]
[1745783962282,0.2464136,94437.0,94436.0,0.91924723]
[1745783962482,0.2464136,94437.0,94436.0,0.55844723]
[1745783962684,0.2464136,94437.0,94436.0,0.91924723]
[1745783964593,0.2444136,94437.0,94436.0,0.91924723]
[1745783964789,0.2434136,94437.0,94436.0,0.92124723]
[1745783964988,0.2434136,94437.0,94436.0,0.92324723]
[1745783965188,0.2434136,94437.0,94436.0,0.7618158]
[1745783966688,0.3608,94457.0,94437.0,0.0529282]
[1745783966890,0.19918887,94455.0,94454.0,0.2645896]
[1745783967082,0.38113615,94455.0,94454.0,0.3845896]
[1745783967283,0.41273615,94455.0,94454.0,0.4491896]
[1745783967978,0.41573615,94455.0,94454.0,0.4501896]
[1745783968184,0.41773615,94455.0,94454.0,0.4816896]
[1745783968488,0.41673615,94455.0,94454.0,0.49276242]
[1745783968992,0.25378887,94455.0,94454.0,0.49276242]
[1745783969183,0.41573615,94455.0,94454.0,0.49276242]
[1745783973098,0.41573615,94455.0,94454.0,0.85356242]
[1745783973392,0.21654728,94455.0,94454.0,0.85356242]
[1745783974288,0.42822048,94455.0,94454.0,0.85356242]
[1745783975796,0.003,94455.0,94454.0,0.85356242]
[1745783992107,0.16494728,94455.0,94454.0,0.85356242]
[1745783995112,0.14013594,94455.0,94454.0,0.85356242]
[1745783999111,0.0693,94458.0,94457.0,0.2116687]
[1745784000113,0.21143594,94458.0,94457.0,0.3316687]
[1745784000298,0.21343594,94458.0,94457.0,0.33953449]
[1745784000702,0.21343594,94458.0,94457.0,0.37003449]
[1745784000904,0.21343594,94458.0,94457.0,0.40093449]
[1745784001104,0.0733,94458.0,94457.0,0.40093449]
[1745784002809,0.0733,94458.0,94457.0,0.37003449]
[1745784003211,0.0733,94458.0,94457.0,0.43367449]
[1745784006211,0.0413,94458.0,94457.0,0.43367449]